fUSD/lending_fUSD_20240114
["ID","MTS","AMOUNT","RATE_DAILY","PERIOD"]
[311537842,1705200632530,-150.24,0.00022779,2]
[311537843,1705200632539,-562.82,0.00022787,2]
[311537844,1705200632549,-139.42172506,0.00022787,3]
[311537845,1705200632562,-152.78309871,0.00022787,3]
[311537846,1705200632572,-625.89989292,0.00022795,2]
[311537847,1705200632582,-346.30115323,0.00022795,2]
[311537848,1705200632591,-185.11529179,0.00022797,2]
[311537849,1705200632601,-206.32546733,0.00022797,2]
[311537850,1705200632611,-203.55657461,0.00022797,2]
[311537851,1705200632623,-726.13664706,0.00022797,2]
[311537852,1705200632633,-460.69744391,0.00022797,2]
[311537853,1705200632658,-469.13636334,0.00022797,2]
[311537854,1705200632674,-1166.59394391,0.00022797,2]
[311537855,1705200632685,-1570.05409755,0.00022797,2]
[311537856,1705200632696,-866.85218717,0.00022797,2]
[311537857,1705200632708,-732.69243062,0.00022797,2]
[311537858,1705200632719,-125638.13031296,0.00022797,2]
[311537859,1705200632730,-587.23047411,0.00022798,2]
[311537860,1705200632740,-163.3901975,0.00022798,2]
[311537861,1705200632749,-2893.89901807,0.00022798,2]
[311537862,1705200632759,-4383.61457425,0.00022798,2]
[311537863,1705200632769,-1051.95920911,0.00022798,2]
[311537864,1705200632779,-5300.23806964,0.00022798,2]
[311537865,1705200632788,-204.68163023,0.00022798,2]
[311537866,1705200632797,-161.51806006,0.00022798,2]
[311537867,1705200632806,-656.94206244,0.00022798,2]
[311537868,1705200632816,-155.37660646,0.00022798,2]
[311537869,1705200632825,-6481.75817514,0.00022798,2]
[311537870,1705200632835,-10075.90945184,0.00022799,2]
[311537871,1705200632844,-84488.8293,0.000228,2]
[311537872,1705200632853,-201.59715363,0.000228,2]
[311537873,1705200632862,-152.6876788,0.000228,2]
[311537874,1705200632872,-150.24,0.00022846,2]
[311537875,1705200632881,-165.15209138,0.0002289,2]
[311537876,1705200632890,-27172.99726848,0.000229,2]
[311537877,1705200632901,-16225.47552374,0.000229,2]
[311537878,1705200632913,-20541.40683352,0.000229,2]
[311537879,1705200632924,-23731.05809975,0.000229,2]
[311537880,1705200632935,-572.78766273,0.000229,2]
[311537881,1705200632946,-1766.89073922,0.000229,2]
[311537887,1705200637503,1000.0,0.00022089,3]
[311537889,1705200638944,-155.0,0.00022793,2]
[311537890,1705200638955,-638.58298318,0.000229,2]
[311537891,1705200638967,-24793.80410224,0.000229,2]
[311537892,1705200639009,-21950.76761563,0.000229,2]
[311537893,1705200639037,-450.32550937,0.000229,2]
[311537894,1705200639127,-367421.1200121,0.000229,2]
[311537895,1705200639140,-250.0,0.000229,2]
[311537896,1705200639154,-2018.6115,0.000229,2]
[311537897,1705200639167,-1337.2971,0.000229,2]
[311537898,1705200639178,-1500.0,0.000229,2]
[311537899,1705200639191,-1500.0,0.000229,2]
[311537900,1705200639205,-1500.0,0.000229,2]
[311537901,1705200639217,-1415.45,0.000229,2]
[311537902,1705200639229,-21231.69273554,0.000229,2]
[311537903,1705200639241,-177.46307939,0.000229,2]
[311537904,1705200639253,-171.99133648,0.000229,2]
[311537905,1705200639266,-1269.09257762,0.000229,2]
[311537906,1705200639278,-165.89372482,0.000229,2]
[311537907,1705200639290,-234.30408819,0.000229,2]
[311537908,1705200639301,-230.13407596,0.000229,2]
[311537909,1705200639312,-194.72749977,0.000229,4]
[311537910,1705200639327,-562.82,0.00022901,2]
[311537911,1705200639341,-150.24,0.00022913,2]
[311537912,1705200639353,-150.24,0.0002298,2]
[311537913,1705200639365,-41627.0,0.00022986,2]
[311537914,1705200639376,-609.23408076,0.0002299,2]
[311537915,1705200639387,-165.15209138,0.0002299,2]
[311537916,1705200639399,-165.15209138,0.0002299,2]
[311537917,1705200639412,-12289.26387543,0.00022998,2]
[311537918,1705200639424,-1019.47667832,0.00022998,2]
[311537919,1705200639436,-214.5125131,0.00022998,2]
[311537920,1705200639445,-155.0,0.00022998,2]
[311537921,1705200639455,-1646.51781904,0.00022999,2]
[311537922,1705200639467,-1642.9736313,0.00022999,2]
[311537923,1705200639479,-2995.0267524,0.00022999,2]
[311537924,1705200639490,-49487.5184777,0.00022999,2]
[311537925,1705200639502,-150.0,0.00022999,2]
[311537926,1705200639514,-150.0,0.00022999,2]
[311537927,1705200639526,-150.0,0.00022999,2]
[311537929,1705200639538,-150.0,0.00022999,2]
[311537931,1705200639548,-767.0,0.00022999,2]
[311537934,1705200639560,-617776.5432475,0.00022999,2]
[311537936,1705200639571,-857.33669562,0.00023,2]
[311537937,1705200639583,-200.0,0.00023,2]
[311537938,1705200639595,-177.0,0.00023,2]
[311537939,1705200639610,-2030910.96360083,0.00023,2]
[311537940,1705200639621,-2226733.33569419,0.00023,2]
[311537941,1705200639652,-6245.08995557,0.00023,2]
[311537942,1705200639668,-285.49172499,0.00023,2]
[311537943,1705200639704,-51543.22289053,0.00023,2]
[311537944,1705200639716,-130099.5129911,0.00023,2]
[311537945,1705200639729,-45462.79312494,0.00023,2]
[311537946,1705200639744,-7664.66354661,0.00023,2]
[311537947,1705200640131,-373.60650318,0.000228,2]
[311537948,1705200640142,-29415.95970005,0.00023,2]
[311537949,1705200640924,-277.55803364,0.00023,2]
[311537950,1705200640938,-480.2301002,0.00023,2]
[311537951,1705200640951,-713.16322836,0.00023,2]
[311537952,1705200640983,-788.96681402,0.00023,2]
[311537953,1705200641043,-624.5037373,0.00023,2]
[311537954,1705200641057,-2886.47752405,0.00023,2]
[311537955,1705200641071,-1475.12240308,0.00023,2]
[311537956,1705200641085,-877.16886363,0.00023,2]
[311537957,1705200641100,-1698.52317393,0.00023,2]
[311537963,1705200642551,-871.23723563,0.00023,2]
[311537964,1705200642565,-39574.88545692,0.00023,2]
[311537965,1705200642620,-495.13548268,0.00023,2]
[311537966,1705200642634,-5084.54201183,0.00023,2]
[311537967,1705200642735,-4970.74854635,0.00023,2]
[311537968,1705200642750,-1464.1528316,0.00023,2]
[311537969,1705200642765,-18374.74469596,0.00023,2]
[311537970,1705200642779,-1008.28687562,0.00023,2]
[311537971,1705200642792,-12291.94301803,0.00023,2]
[311537972,1705200642847,-392.29490377,0.00023,2]
[311537973,1705200645626,-373.60650318,0.0002285,2]
[311537974,1705200645637,-1857.40190666,0.00023,2]
[311537975,1705200645685,-1234.88836428,0.00022999,2]
[311537976,1705200645696,-4784.37551626,0.00023,2]
[311537977,1705200645710,-10418.022841,0.00023,2]
[311537978,1705200645798,-382.51727014,0.00023,2]
[311537979,1705200645910,-428.63184901,0.00023,2]
[311537984,1705200691695,988.78442828,0.00022089,3]
[311537985,1705200753901,206.0,0.00021417,2]
[311537986,1705200796674,367.74,0.00022019,2]
[311537988,1705200874874,169.09,0.00021896,2]
[311537989,1705200881874,151.33,0.00021896,2]
[311537990,1705200889420,7639.23,0.00021825,2]
[311537991,1705200914348,169.45,0.00021835,2]
[311537992,1705200989224,366.51,0.00019866,2]
[311537993,1705200991730,250.0,0.00021784,2]
[311537994,1705200998230,1000.0,0.00022089,3]
[311537995,1705201046558,436.72,0.00021771,2]
[311537996,1705201141775,261.09044717,0.00022089,3]
[311537997,1705201231587,261.09044716,0.00022089,3]
[311537998,1705201285210,343.22,0.00021784,2]
[311537999,1705201306370,155.9,0.00021972,2]
[311538000,1705201321547,177.16025844,0.00022089,3]
[311538001,1705201336427,361.45556358,0.00022099,2]
[311538002,1705201501516,267.07521833,0.00022089,3]
[311538003,1705201597888,1000.0,0.00022089,3]
[311538004,1705201597982,348.18,0.00019899,2]
[311538005,1705201681568,306.64374174,0.00022089,3]
[311538006,1705201714840,1000.0,0.00021828,2]
[311538007,1705201716820,1000.0,0.00022089,3]
[311538008,1705201741467,212.80686772,0.00022089,3]
[311538009,1705201821612,320.33,0.00021829,2]
[311538014,1705201831752,-1000.0,0.000221,2]
[311538015,1705201831761,-161.26088353,0.00022101,2]
[311538016,1705201831771,-161.26088353,0.00022101,2]
[311538017,1705201831780,-151.33,0.00022115,2]
[311538018,1705201831789,-167.04,0.00022134,2]
[311538019,1705201831800,-155.9,0.00022163,2]
[311538020,1705201831809,-348.18,0.00022163,2]
[311538021,1705201831819,-151.33,0.00022334,2]
[311538022,1705201831828,-155.9,0.00022353,2]
[311538023,1705201831838,-171.99512959,0.00022444,2]
[311538024,1705201831848,-200.19732033,0.00022481,2]
[311538025,1705201831860,-299.79267967,0.00022481,2]
[311538026,1705201831870,-155.9,0.00022544,2]
[311538027,1705201831879,-151.33,0.00022553,2]
[311538028,1705201831889,-1184.54124221,0.00022562,2]
[311538029,1705201831898,-171.99512956,0.00022596,2]
[311538030,1705201831908,-151.03595028,0.00022639,2]
[311538031,1705201831917,-150.0,0.0002268,2]
[311538032,1705201831926,-85.40499828,0.00022698,2]
[311538033,1705201831942,-64.59500172,0.00022698,2]
[311538034,1705201831951,-782.77434506,0.00022699,2]
[311538035,1705201831962,-582.38722525,0.00022699,2]
[311538036,1705201831978,-1687.35338211,0.00022699,2]
[311538037,1705201831989,-740.58240107,0.00022699,2]
[311538038,1705201832000,-563.92816788,0.00022699,2]
[311538039,1705201832012,-762.21875318,0.00022699,2]
[311538040,1705201832027,-400.0,0.00022699,2]
[311538041,1705201832039,-1397.97451286,0.00022699,2]
[311538042,1705201832053,-2190.22572218,0.00022699,2]
[311538043,1705201832065,-1053.42704108,0.00022699,2]
[311538044,1705201832076,-1265.4301506,0.00022699,2]
[311538045,1705201832087,-5058.21719873,0.00022699,2]
[311538046,1705201832096,-155.9,0.00022735,2]
[311538047,1705201832105,-171.99512956,0.00022747,2]
[311538048,1705201832114,-151.33,0.00022772,2]
[311538049,1705201832124,-6826.15488999,0.00022777,2]
[311538055,1705201837779,-206.0,0.00022275,2]
[311538056,1705201837789,-2851.77897238,0.00022777,2]
[311538057,1705201837798,-585.42171391,0.00022777,2]
[311538058,1705201837900,-2718.18247427,0.00022777,2]
[311538059,1705201837909,-4903.47311796,0.00022777,2]
[311538060,1705201837918,-155.97308052,0.00022793,2]
[311538061,1705201837927,-510.68748431,0.00022793,2]
[311538062,1705201837937,-1875.64,0.000228,2]
[311538063,1705201837946,-314.25,0.000228,2]
[311538064,1705201837955,-401.27,0.000228,2]
[311538065,1705201837964,-940.21,0.000228,2]
[311538066,1705201837973,-353.25,0.000228,2]
[311538067,1705201837982,-314.25,0.000228,2]
[311538068,1705201837991,-401.27,0.000228,2]
[311538069,1705201838000,-401.27,0.000228,2]
[311538070,1705201838010,-260.94,0.000228,2]
[311538071,1705201838019,-401.27,0.000228,2]
[311538072,1705201838029,-401.27,0.000228,2]
[311538073,1705201838039,-401.27,0.000228,2]
[311538074,1705201838048,-401.27,0.000228,2]
[311538075,1705201838059,-401.27,0.000228,2]
[311538076,1705201838068,-401.27,0.000228,2]
[311538077,1705201838077,-401.27,0.000228,2]
[311538078,1705201838086,-401.27,0.000228,2]
[311538079,1705201838095,-410.48,0.000228,2]
[311538080,1705201838105,-401.27,0.000228,2]
[311538081,1705201838114,-401.27,0.000228,2]
[311538082,1705201838123,-401.27,0.000228,2]
[311538083,1705201838133,-385.91,0.000228,2]
[311538084,1705201838144,-940.21,0.000228,2]
[311538085,1705201838153,-401.27,0.000228,2]
[311538086,1705201838163,-401.27,0.000228,2]
[311538087,1705201838172,-940.21,0.000228,2]
[311538088,1705201838182,-401.27,0.000228,2]
[311538089,1705201838192,-940.21,0.000228,2]
[311538090,1705201838201,-401.27,0.000228,2]
[311538091,1705201838211,-401.27,0.000228,2]
[311538092,1705201838222,-562.7,0.000228,2]
[311538093,1705201838231,-401.27,0.000228,2]
[311538094,1705201838241,-940.21,0.000228,2]
[311538095,1705201838250,-940.21,0.000228,2]
[311538097,1705201838259,-940.21,0.000228,2]
[311538099,1705201838268,-401.27,0.000228,2]
[311538101,1705201838278,-320.33,0.00022807,2]
[311538103,1705201838287,-500.0,0.00022816,2]
[311538105,1705201838296,-24.20340949,0.00022816,2]
[311538107,1705201838309,-175.79659051,0.00022816,2]
[311538109,1705201838318,-230.75975103,0.0002288,3]
[311538111,1705201838327,-2018.6115,0.0002288,2]
[311538113,1705201838336,-1337.2971,0.0002288,2]
[311538115,1705201838345,-373.60650318,0.00022886,2]
[311538117,1705201838354,-477.49631908,0.00022898,2]
[311538119,1705201838364,-1334.00421687,0.00022898,2]
[311538121,1705201838373,-1334.00421685,0.00022899,2]
[311538123,1705201838382,-22142.96854152,0.00022899,2]
[311538128,1705201838422,-533.78588493,0.00022899,2]
[311538132,1705201838442,-1140.38816062,0.00022899,2]
[311538134,1705201838451,-177.46307939,0.00022899,2]
[311538136,1705201838461,-171.99133648,0.00022899,2]
[311538138,1705201838469,-2116.6233071,0.00022899,2]
[311538140,1705201838479,-1334.00421685,0.00022899,2]
[311538142,1705201838488,-194.72749977,0.00022899,4]
[311538144,1705201838497,-171.99512956,0.00022899,2]
[311538146,1705201838506,-234.30408819,0.00022899,2]
[311538148,1705201838515,-2116.623307,0.00022899,2]
[311538150,1705201838524,-2116.623307,0.00022899,2]
[311538152,1705201838533,-2116.623307,0.00022899,2]
[311538154,1705201838543,-2116.623307,0.00022899,2]
[311538156,1705201838552,-2116.623307,0.00022899,2]
[311538158,1705201838561,-2116.623307,0.000229,2]
[311538160,1705201838570,-2116.623307,0.000229,2]
[311538162,1705201838579,-2116.623307,0.000229,2]
[311538164,1705201838588,-2116.623307,0.000229,2]
[311538166,1705201838597,-2116.623307,0.000229,2]
[311538168,1705201838606,-250.0,0.000229,2]
[311538170,1705201838615,-2116.623307,0.000229,2]
[311538172,1705201838624,-477.49631908,0.000229,2]
[311538174,1705201838634,-306.4338,0.000229,2]
[311538176,1705201838643,-194.72749976,0.000229,4]
[311538177,1705201838651,-155.9,0.00022926,2]
[311538179,1705201838661,-165.15209138,0.00022976,2]
[311538181,1705201838670,-273.23265285,0.00022979,2]
[311538183,1705201838678,-9685.45212201,0.0002298,2]
[311538185,1705201838690,-643.08479251,0.0002298,2]
[311538187,1705201838701,-1007.38297438,0.0002298,2]
[311538190,1705201838716,-797.40372528,0.0002298,2]
[311538192,1705201838728,-7174.63899582,0.0002298,2]
[311538194,1705201838739,-1329.09933,0.0002298,2]
[311538197,1705201838758,-434260.51276316,0.0002298,2]
[311538199,1705201838767,-41627.0,0.00022986,2]
[311538201,1705201838776,-165.15209138,0.0002299,2]
[311538203,1705201838785,-151.33,0.00022991,2]
[311538205,1705201838794,-2482.159856,0.00022996,2]
[311538207,1705201838803,-155.0,0.00022996,2]
[311538209,1705201838812,-214.5125131,0.00022996,2]
[311538211,1705201838821,-1019.47667832,0.00022996,2]
[311538213,1705201838830,-12289.26387543,0.00022997,2]
[311538215,1705201838839,-1772.75139072,0.00022998,2]
[311538217,1705201838847,-1607.09109837,0.00022998,2]
[311538219,1705201838856,-114451.15972134,0.00022998,2]
[311538221,1705201838865,-34952.99814514,0.00022998,2]
[311538223,1705201838874,-765.0,0.00022998,2]
[311538225,1705201838883,-857.33669562,0.00022999,2]
[311538227,1705201838893,-505265.21634996,0.00022999,2]
[311538229,1705201838901,-1337.79572797,0.00022999,2]
[311538231,1705201838910,-3858.9640654,0.00022999,2]
[311538233,1705201838919,-1651.7444566,0.00022999,2]
[311538234,1705201838929,-150.0,0.00022999,2]
[311538236,1705201838939,-150.0,0.00022999,2]
[311538238,1705201838948,-150.0,0.00022999,2]
[311538240,1705201838957,-150.0,0.00022999,2]
[311538242,1705201838966,-150.0,0.00022999,2]
[311538244,1705201838975,-150.0,0.00022999,2]
[311538246,1705201838984,-150.0,0.00022999,2]
[311538248,1705201838993,-150.0,0.00022999,2]
[311538250,1705201839002,-150.0,0.00022999,2]
[311538252,1705201839011,-150.0,0.00022999,2]
[311538254,1705201839021,-150.0,0.00022999,2]
[311538256,1705201839031,-150.0,0.00022999,2]
[311538258,1705201839040,-49436.6141213,0.00022999,2]
[311538260,1705201839050,-1292457.34669061,0.00023,2]
[311538262,1705201839059,-2521520.5387263,0.00023,2]
[311538265,1705201839071,-6724.85455948,0.00023,2]
[311538471,1705201841164,-3276.87080573,0.00023,2]
[311538478,1705201841223,-1798.36029792,0.00023,2]
[311538480,1705201841235,-1792.98406815,0.00023,2]
[311538486,1705201841282,-405.16335932,0.00023,2]
[311538625,1705201842751,-387.17075605,0.00023,2]
[311538627,1705201842763,-7183.12564518,0.00023,2]
[311538633,1705201842810,-1234.15042956,0.00023,2]
[311538635,1705201842822,-1145.80337591,0.00023,2]
[311538636,1705201842836,-2369.15291106,0.00023,2]
[311538637,1705201842869,-1701.28707668,0.00023,2]
[311538638,1705201842882,-822.29078517,0.00023,2]
[311538639,1705201842982,-1628.78325963,0.00023,2]
[311538640,1705201842994,-2623.32666204,0.00023,2]
[311538641,1705201843005,-6073.4549868,0.00023,2]
[311538642,1705201843017,-3767.10488181,0.00023,2]
[311538643,1705201843040,-1085.42,0.00023,2]
[311538653,1705201845768,-258.7699375,0.000229,2]
[311538654,1705201845779,-340.52924514,0.00022999,2]
[311538655,1705201845791,-662.81755084,0.00022999,2]
[311538656,1705201845802,-10806.49202461,0.00023,2]
[311538657,1705201845814,-2844.74302818,0.00023,2]
[311538658,1705201845826,-2642.37535781,0.00023,2]
[311538659,1705201846155,-607.30055057,0.00023,2]
[311538660,1705202012033,179.57130456,0.00022089,3]
[311538661,1705202079439,313.36,0.00020212,2]
[311538662,1705202238469,12200.0,0.00031,120]
[311538663,1705202251541,485.20443745,0.00022089,3]
[311538664,1705202276052,304.12,0.00022065,2]
[311538665,1705202312588,182.0,0.0002036,2]
[311538666,1705202334511,151.41,0.00022049,2]
[311538667,1705202521857,345.54355273,0.00022089,3]
[311538668,1705202526354,297.69,0.000201,2]
[311538669,1705202718438,800.0,0.00022013,2]
[311538670,1705202735255,283.84,0.00022004,2]
[311538671,1705203001499,1038.89780526,0.0002209,3]
[311538672,1705203030069,282.8,0.00020082,2]
[311538679,1705203031976,-1000.0,0.00022105,2]
[311538680,1705203031986,-99.56856427,0.00022106,2]
[311538681,1705203031998,-663.71066483,0.00022106,2]
[311538682,1705203032008,-200.0,0.00022108,2]
[311538683,1705203032016,-207.12,0.00022141,2]
[311538684,1705203032026,-161.5,0.00022306,2]
[311538685,1705203032036,-282.8,0.00022346,2]
[311538686,1705203032045,-167.24440025,0.00022677,2]
[311538687,1705203032056,-267.51396874,0.00022769,2]
[311538688,1705203032065,-150.0,0.00022776,2]
[311538689,1705203032074,-962.55625156,0.00022777,2]
[311538690,1705203032131,-2341.04793662,0.00022777,2]
[311538691,1705203032141,-9677.93386237,0.00022777,2]
[311538692,1705203032150,-4903.47311796,0.00022777,2]
[311538693,1705203032160,-3648.92,0.00022777,2]
[311538694,1705203032169,-499.99,0.00022777,2]
[311538695,1705203032179,-406.55,0.00022777,2]
[311538696,1705203032188,-213.82950071,0.00022898,3]
[311538697,1705203032198,-399.88591438,0.00022898,2]
[311538698,1705203032207,-250.0,0.000229,2]
[311538699,1705203032217,-923.16754447,0.000229,2]
[311538700,1705203032226,-230.13407596,0.000229,2]
[311538701,1705203032236,-346.87973373,0.00022976,2]
[311538702,1705203032246,-283.84,0.00022982,2]
[311538703,1705203032256,-198.26919029,0.00022986,2]
[311538704,1705203032266,-198.26919029,0.0002299,2]
[311538705,1705203032275,-246.14316645,0.00022992,2]
[311538706,1705203032285,-413.8570474,0.00022993,3]
[311538707,1705203032295,-34569.13394253,0.00022993,2]
[311538708,1705203032307,-4112.66244914,0.00022993,2]
[311538710,1705203032319,-1809.51341481,0.00022993,2]
[311538720,1705203032719,-446.48737761,0.00022993,2]
[311538721,1705203032730,-435.79844913,0.00022993,2]
[311538722,1705203033099,-52841.69979974,0.00022993,2]
[311538723,1705203033108,-214.5125131,0.00022994,2]
[311538724,1705203033117,-2482.159856,0.00022994,2]
[311538725,1705203033127,-1607.09109837,0.00022994,2]
[311538726,1705203033136,-21372.93151099,0.00022994,2]
[311538727,1705203033148,-5190.48658519,0.00022994,2]
[311538730,1705203037235,1000.0,0.0002209,3]
[311538731,1705203037912,-5199.4040083,0.00022994,2]
[311538732,1705203038077,-7677.89020334,0.00022994,2]
[311538733,1705203038137,-1091.0594006,0.00022994,2]
[311538734,1705203038406,-73919.38801292,0.00022994,2]
[311538735,1705203038416,-1019.47667832,0.00022994,2]
[311538736,1705203038425,-1772.75139072,0.00022994,2]
[311538737,1705203038435,-12289.26387543,0.00022995,2]
[311538738,1705203038445,-505265.21634996,0.00022996,2]
[311538739,1705203038455,-62849.43572826,0.00022998,2]
[311538740,1705203038465,-518.53436578,0.00022998,2]
[311538741,1705203038474,-1050.48447728,0.00022998,2]
[311538742,1705203038483,-170.87680973,0.00022998,2]
[311538743,1705203038493,-212.85951182,0.00022998,2]
[311538744,1705203038502,-857.33669562,0.00022999,2]
[311538745,1705203038511,-19066.37804263,0.00022999,2]
[311538746,1705203038520,-2026.09149196,0.00022999,2]
[311538748,1705203038530,-155.0,0.00022999,2]
[311538750,1705203038539,-1715.00446937,0.00022999,2]
[311538752,1705203038548,-8470.03408743,0.00022999,2]
[311538754,1705203038558,-162.36178908,0.00022999,2]
[311538755,1705203038567,-33857.6934367,0.00022999,2]
[311538757,1705203038576,-1086.95902898,0.00022999,2]
[311538760,1705203038585,-1000.0,0.00022999,2]
[311538762,1705203038594,-735.5185509,0.00022999,2]
[311538764,1705203038603,-3038.2684343,0.00022999,2]
[311538765,1705203038612,-313.5561561,0.00022999,2]
[311538768,1705203038622,-899.4096003,0.00022999,2]
[311538770,1705203038631,-33664.7476975,0.00022999,2]
[311538772,1705203038640,-150.0,0.00022999,2]
[311538774,1705203038649,-150.0,0.00022999,2]
[311538776,1705203038658,-150.0,0.00022999,2]
[311538778,1705203038667,-150.0,0.00022999,2]
[311538780,1705203038676,-706.0,0.00022999,2]
[311538782,1705203038685,-617776.5432475,0.00023,2]
[311538784,1705203038694,-2539523.07130969,0.00023,2]
[311538786,1705203038703,-623489.19096528,0.00023,2]
[311539092,1705203041225,-510.13070881,0.00023,2]
[311539099,1705203041280,-1286.34736306,0.00023,2]
[311539265,1705203042972,-3303.60418818,0.00022777,2]
[311539267,1705203042982,-2944.88335656,0.00022777,2]
[311539270,1705203043029,-3294.45232996,0.00022777,2]
[311539271,1705203043046,-2105.55,0.00022777,2]
[311539273,1705203043253,-313.09470256,0.00022777,2]
[311539294,1705203047015,-580.91608411,0.00022777,2]
[311539296,1705203047027,-339.81860002,0.00022777,2]
[311539319,1705203047232,-99.21878916,0.00022777,2]
[311539321,1705203047241,-1140.54025778,0.00022777,2]
[311539410,1705203061923,204.41091316,0.0002209,3]
[311539411,1705203076301,1168.27299461,0.00021848,7]
[311539412,1705203152297,208.57007282,0.0002209,3]
[311539413,1705203281417,245.99,0.00021946,2]
[311539414,1705203420663,207.12,0.00022074,2]
[311539415,1705203540580,268.9,0.00019991,2]
[311539416,1705203573740,207.0,0.00021467,2]
[311539417,1705203632063,271.0178664,0.0002209,3]
[311539418,1705203666847,1000.0,0.0002209,3]
[311539419,1705203669062,640.0,0.00021917,2]
[311539420,1705203766267,225.12,0.00021909,2]
[311539421,1705203766464,225.12,0.00022025,2]
[311539422,1705203773127,229.59,0.00021835,2]
[311539423,1705203841540,232.0567433,0.0002209,3]
[311539424,1705203966867,1000.0,0.0002209,3]
[311539425,1705204013447,255.45,0.0001991,2]
[311539426,1705204171591,425.73203742,0.0002209,3]
[311539433,1705204232145,-1576.0,0.00022126,2]
[311539435,1705204232204,-280.0,0.00022126,2]
[311539436,1705204232216,-162.96995483,0.00022126,2]
[311539437,1705204232225,-1000.0,0.00022127,2]
[311539438,1705204232235,-225.12,0.0002214,2]
[311539439,1705204232244,-255.45,0.00022174,2]
[311539440,1705204232254,-225.12,0.00022255,2]
[311539441,1705204232264,-225.12,0.00022371,2]
[311539442,1705204232273,-166.82351888,0.00022386,2]
[311539443,1705204232283,-225.12,0.00022486,2]
[311539444,1705204232292,-150.0,0.00022575,2]
[311539445,1705204232302,-225.12,0.00022601,2]
[311539446,1705204232311,-166.82351886,0.00022643,2]
[311539447,1705204232320,-146.01050141,0.00022716,2]
[311539448,1705204232344,-79.10949859,0.00022716,2]
[311539449,1705204232353,-360.0,0.0002272,2]
[311539450,1705204232362,-215.17,0.0002274,2]
[311539451,1705204232372,-598.1247,0.00022764,2]
[311539452,1705204232381,-547.0,0.0002277,2]
[311539453,1705204232390,-150.0,0.00022772,2]
[311539454,1705204232399,-1708.04149814,0.00022773,2]
[311539455,1705204232441,-1016.380006,0.00022773,2]
[311539456,1705204232452,-378.44094283,0.00022773,2]
[311539457,1705204232463,-2571.16321385,0.00022773,2]
[311539458,1705204232499,-1939.33175022,0.00022773,2]
[311539459,1705204232510,-7159.14264811,0.00022773,2]
[311539471,1705204238156,-18961.17875779,0.00022773,2]
[311539472,1705204238168,-306.97180835,0.00022773,2]
[311539473,1705204238179,-170.87680973,0.00022774,2]
[311539474,1705204238192,-5418.20768888,0.00022774,2]
[311539475,1705204238215,-404.64145571,0.00022774,2]
[311539476,1705204238227,-4906.23264509,0.00022774,2]
[311539477,1705204239453,-4999.15470271,0.00022774,2]
[311539478,1705204239632,-47121.19923587,0.00022774,2]
[311539479,1705204239642,-212.85951182,0.00022775,2]
[311539480,1705204239652,-19066.37804263,0.00022775,2]
[311539481,1705204239662,-3762.93286018,0.00022777,2]
[311539482,1705204239671,-9677.93386237,0.00022777,2]
[311539483,1705204239681,-3303.60418818,0.00022777,2]
[311539484,1705204239694,-729.58,0.00022777,2]
[311539485,1705204239703,-720.58,0.00022777,2]
[311539486,1705204239713,-229.59,0.00022813,2]
[311539487,1705204239722,-500.0,0.00022816,2]
[311539488,1705204239732,-811.309119,0.00022816,2]
[311539489,1705204239741,-225.12,0.00022832,2]
[311539490,1705204239751,-8470.03408743,0.00022892,2]
[311539491,1705204239760,-1050.48447728,0.00022892,2]
[311539492,1705204239770,-518.53436578,0.00022892,2]
[311539493,1705204239779,-162.36178908,0.00022893,2]
[311539494,1705204239789,-1715.00446937,0.00022893,2]
[311539495,1705204239799,-34584.6697,0.00022894,2]
[311539496,1705204239810,-27849.5826,0.00022899,2]
[311539497,1705204239819,-349.90017503,0.00022899,2]
[311539498,1705204239829,-166.82351886,0.000229,2]